[Event "Budapest Spring Festival 2019"]
[Site "Budapest"]
[Date "2019.04.16"]
[Round "8.12"]
[White "Horvath, Adam"]
[Black "Pranav Anand"]
[Result "1-0"]
[ECO "C88"]
[WhiteElo "2533"]
[BlackElo "2359"]
[Annotator "RC"]
[PlyCount "205"]
[EventDate "2019.04.09"]
[EventType "swiss"]
[EventCountry "HUN"]
[SourceTitle "playchess.com"]
[Source "ChessBase"]
[SourceQuality "1"]
[TimeControl "40/5400+30:1800+30"]

1. e4 {[%emt 0:05:41]} e5 {[%emt 0:00:10]} 2. Nf3 {[%emt 0:00:06]} Nc6 {[%emt 0:00:04]} 3. Bb5 {[%emt 0:00:05]} a6 {[%emt 0:00:04]} 4. Ba4 {[%emt 0:00:05]} Nf6 {[%emt 0:00:05]} 5. O-O {[%emt 0:00:07]} Be7 {[%emt 0:00:02]} 6. Re1 {[%emt 0:00:07]} b5 {[%emt 0:00:03]} 7. Bb3 {[%emt 0:00:05]} d6 {[%emt 0:00:03]} 8. a4 {[%emt 0:00:09]} Bb7 {[%emt 0:01:40]} 9. d3 {[%emt 0:00:06]} O-O {[%emt 0:04:23]} 10. Nbd2 {[%emt 0:00:47]} Na5 {[%emt 0:04:52]} 11. Ba2 {[%emt 0:00:13]} c5 {[%emt 0:00:12]} 12. Nf1 {[%emt 0:00:05]} Bc8 {[%emt 0:01:56]} 13. axb5 {[%emt 0:01:26]} axb5 {[%emt 0:00:08]} 14. b4 {[%emt 0:00:05]} cxb4 {[%emt 0:02:20]} 15. Bd2 {[%emt 0:00:04]} Be6 {[%emt 0:01:55]} 16. Bxe6 {[%emt 0:04:49]} fxe6 {[%emt 0:00:20]} 17. Bxb4 {[%emt 0:10:00]} Nc6 {[%emt 0:01:21]} 18. Bd2 {[%emt 0:00:17]} Nd7 {[%emt 0:15:22]} 19. Qb1 {[%emt 0:15:24]} Qb6 {[%emt 0:13:37]} 20. Rxa8 {[%emt 0:10:00]} Rxa8 {[%emt 0:00:08]} 21. Be3 {[%emt 0:00:11]} Qa5 {[%emt 0:04:33]} 22. Qb3 {[%emt 0:01:12]} Kf7 {[%emt 0:00:21]} 23. Rb1 {[%emt 0:03:13]} b4 {[%emt 0:06:53]} 24. d4 {[%emt 0:06:53]} d5 {[%emt 0:12:35]} 25. exd5 {[%emt 0:23:32]} Qxd5 {[%emt 0:01:02]} 26. c4 {[%emt 0:00:04]} bxc3 {[%emt 0:01:54]} 27. Qxc3 {[%emt 0:00:08]} exd4 {[%emt 0:05:20]} 28. Nxd4 {[%emt 0:10:19]} Nxd4 {[%emt 0:00:16]} 29. Bxd4 {[%emt 0:00:05]} Ra3 {[%emt 0:01:08]} 30. Qd2 {[%emt 0:02:18]} Ra4 {[%emt 0:03:20]} 31. Rd1 {[%emt 0:02:17]} Bf6 {[%emt 0:01:00]} 32. Bxf6 {[%emt 0:04:39]} Qxd2 {[%emt 0:00:07]} 33. Rxd2 {[%emt 0:00:25]} Nxf6 {[%emt 0:00:05]} 34. g3 {[%emt 0:00:18]} Nd5 {[%emt 0:00:23]} 35. Rb2 {[%emt 0:00:12]} Kf6 {[%emt 0:01:18]} 36. Nd2 {[%emt 0:00:26]} Kf5 {[%emt 0:01:50]} 37. Rb7 {[%emt 0:01:14]} Kf6 {[%emt 0:00:32]} 38. Kg2 {[%emt 0:00:17]} Rd4 39. Nf3 {[%emt 0:00:19]} Rd1 {[%emt 0:01:43]} 40. h4 {[%emt 0:00:00]} h6 {[%emt 0:00:00]} 41. Nh2 {[%emt 0:02:44]} h5 {[%emt 0:11:06]} 42. Nf3 {[%emt 0:00:44]} Rc1 {[%emt 0:00:27]} 43. Ng5 {[%emt 0:00:52]} Rc7 {[%emt 0:00:25]} 44. Rb8 {[%emt 0:00:06]} Kf5 {[%emt 0:00:14]} 45. Rb5 {[%emt 0:11:32]} Rc2 {[%emt 0:01:12]} 46. Ra5 {[%emt 0:00:11]} Rc6 {[%emt 0:00:30]} 47. Ra7 {[%emt 0:00:51]} Rc7 {[%emt 0:01:03]} 48. Ra6 {[%emt 0:00:09]} Re7 {[%emt 0:00:48]} 49. Ra5 {[%emt 0:02:50]} Rc7 {[%emt 0:00:10]} 50. Nf3 {[%emt 0:00:34]} Kf6 {[%emt 0:03:51]} 51. Ra8 {[%emt 0:00:48]} Rb7 {[%emt 0:02:06]} 52. Rh8 {[%emt 0:00:48]} g6 {[%emt 0:00:52]} 53. Ng5 {[%emt 0:00:26]} Re7 {[%emt 0:00:52]} 54. Rd8 {[%emt 0:02:02]} Kf5 {[%emt 0:05:57]} 55. Rf8+ {[%emt 0:02:57]} Nf6 {[%emt 0:08:15]} 56. f3 {[%emt 0:02:18]} Ke5 {[%emt 0:00:32]} 57. Nf7+ {[%emt 0:09:33]} Kd4 {[%emt 0:00:13]} 58. Nh8 {[%emt 0:00:11]} Nd5 {[%emt 0:01:30]} 59. Nxg6 {[%emt 0:00:33]} Rg7 {[%emt 0:03:41]} 60. Nf4 {[%emt 0:00:06]} Nxf4+ {[%emt 0:02:15]} 61. Rxf4+ {[%emt 0:00:06]} Kd5 {[%emt 0:02:07]} 62. Rf8 {[%emt 0:00:06]} Rh7 {[%emt 0:00:10]} 63. Kh3 {[%emt 0:00:07]} e5 {[%emt 0:00:08]} 64. Rd8+ {[%emt 0:02:14]} Ke6 {[%emt 0:00:08]} 65. Re8+ {[%emt 0:00:05]} Kf6 {[%emt 0:00:18]} 66. g4 {[%emt 0:00:06]} hxg4+ {[%emt 0:00:31]} 67. fxg4 {[%emt 0:00:04]} Ra7 {[%emt 0:00:17]} 68. g5+ {[%emt 0:00:10]} Kg6 {[%emt 0:00:56]} 69. Re6+ {[%emt 0:00:06]} Kg7 {[%emt 0:00:20]} 70. h5 {[%emt 0:00:35]} Ra1 {[%emt 0:00:23]} 71. Re7+ {[%emt 0:00:26]} Kf8 {[%emt 0:00:12]} 72. Rxe5 {[%emt 0:00:05]} Ra4 {[%emt 0:00:57]} 73. Rb5 {[%emt 0:00:06]} Rc4 {[%emt 0:00:12]} 74. Kg3 {[%emt 0:00:12]} Kf7 {[%emt 0:00:21]} 75. Rf5+ {[%emt 0:00:21]} Kg7 {[%emt 0:00:17]} 76. Rf4 {[%emt 0:00:11]} Rc1 {[%emt 0:00:19]} 77. Ra4 {[%emt 0:00:29]} Rg1+ {[%emt 0:00:11]} 78. Kf4 {[%emt 0:00:05]} Rf1+ {[%emt 0:00:08]} 79. Ke5 {[%emt 0:00:07]} Re1+ {[%emt 0:00:29]} 80. Kf5 {[%emt 0:00:13]} Rf1+ {[%emt 0:00:08]} 81. Rf4 {[%emt 0:00:04]} Ra1 {[%emt 0:00:08]} 82. Rf3 {[%emt 0:04:10]} Rb1 {[%emt 0:00:32]} 83. h6+ {[%emt 0:01:43]} Kh7 {[%emt 0:00:07]} 84. Re3 {[%emt 0:00:43]} Rf1+ {[%emt 0:00:20]} 85. Kg4 {[%emt 0:00:09]} Rg1+ {[%emt 0:00:09]} 86. Kh4 {[%emt 0:00:20]} Rh1+ {[%emt 0:00:14]} 87. Rh3 {[%emt 0:00:07]} Rg1 {[%emt 0:00:14]} 88. Kh5 {[%emt 0:00:06]} Rg2 {[%emt 0:00:16]} 89. Rh1 {[%emt 0:00:13]} Rg3 {[%emt 0:00:10]} 90. Ra1 {[%emt 0:00:05]} Rh3+ {[%emt 0:00:41]} 91. Kg4 {[%emt 0:00:04]} Rb3 {[%emt 0:00:15]} 92. Ra7+ {[%emt 0:00:05]} Kg8 {[%emt 0:00:09]} 93. g6 {[%emt 0:01:11]} Rb4+ {[%emt 0:00:04]} 94. Kf5 {[%emt 0:00:05]} Rb5+ {[%emt 0:00:03]} 95. Ke4 {[%emt 0:00:10]} Rb8 {[%emt 0:00:38]} 96. Re7 {[%emt 0:00:21]} Rb4+ {[%emt 0:01:43]} 97. Kf5 {[%emt 0:00:05]} Rb5+ {[%emt 0:00:04]} 98. Re5 {[%emt 0:00:11]} Rb8 {[%emt 0:00:05]} 99. Kg5 {[%emt 0:00:07]} Kf8 {[%emt 0:00:59]} 100. Rf5+ {[%emt 0:00:11]} Kg8 {[%emt 0:00:06]} 101. h7+ {[%emt 0:00:14]} Kg7 {[%emt 0:00:04]} 102. Rf7+ {[%emt 0:00:10]} Kh8 {[%emt 0:00:03]} 103. Kh6 {[%emt 0:00:07]} 1-0

[Event "Budapest Spring Festival 2019"]
[Site "Budapest"]
[Date "2019.04.16"]
[Round "8.18"]
[White "Bernadskiy, Vitaliy"]
[Black "Parkhov, Yair"]
[Result "1-0"]
[ECO "B51"]
[WhiteElo "2587"]
[BlackElo "2352"]
[Annotator "ChessBase"]
[PlyCount "65"]
[EventDate "2019.04.09"]
[EventType "swiss"]
[EventCountry "HUN"]
[SourceTitle "playchess.com"]
[Source "ChessBase"]
[SourceQuality "1"]
[TimeControl "40/5400+30:1800+30"]

1. e4 {[%emt 0:04:45]} c5 {[%emt 0:00:07]} 2. Nf3 {[%emt 0:00:05]} d6 {[%emt 0:00:03]} 3. Bb5+ {[%emt 0:00:19]} Nd7 {[%emt 0:00:09]} 4. O-O {[%emt 0:00:07]} a6 {[%emt 0:00:03]} 5. Bd3 {[%emt 0:00:05]} Ngf6 {[%emt 0:00:08]} 6. c3 {[%emt 0:00:10]} b5 {[%emt 0:00:12]} 7. a4 {[%emt 0:00:12]} Bb7 {[%emt 0:03:59]} 8. axb5 {[%emt 0:04:05]} axb5 {[%emt 0:00:06]} 9. Rxa8 {[%emt 0:00:05]} Qxa8 {[%emt 0:00:09]} 10. Bxb5 {[%emt 0:02:41]} Bxe4 {[%emt 0:00:45]} 11. d4 {[%emt 0:01:07]} Bxb1 {[%emt 0:02:45]} 12. dxc5 {[%emt 0:00:03]} Be4 {[%emt 0:10:08]} 13. Re1 {[%emt 0:00:10]} e6 {[%emt 0:26:09]} 14. Rxe4 {[%emt 0:07:09]} Qxe4 {[%emt 0:24:16]} 15. c6 {[%emt 0:02:03]} Be7 {[%emt 0:02:54]} 16. cxd7+ {[%emt 0:00:25]} Nxd7 {[%emt 0:01:06]} 17. Nd4 {[%emt 0:00:03]} Qb7 {[%emt 0:09:44]} 18. Qa4 {[%emt 0:00:32]} O-O {[%emt 0:03:59]} 19. Bxd7 {[%emt 0:00:12]} Ra8 {[%emt 0:04:35]} 20. Bc6 {[%emt 0:00:09]} Rxa4 {[%emt 0:00:10]} 21. Bxb7 {[%emt 0:00:03]} Bg5 {[%emt 0:01:45]} 22. f4 {[%emt 0:00:28]} e5 {[%emt 0:00:09]} 23. Bc6 {[%emt 0:02:56]} Rc4 {[%emt 0:02:26]} 24. Bd5 {[%emt 0:01:45]} Rc5 {[%emt 0:01:47]} 25. c4 {[%emt 0:01:18]} exd4 {[%emt 0:00:05]} 26. fxg5 {[%emt 0:00:47]} Ra5 {[%emt 0:00:04]} 27. Kf2 {[%emt 0:00:08]} Ra1 {[%emt 0:00:05]} 28. Bf4 {[%emt 0:00:34]} Ra2 {[%emt 0:00:15]} 29. Bxd6 {[%emt 0:00:24]} Rxb2+ {[%emt 0:00:06]} 30. Ke1 {[%emt 0:00:02]} g6 {[%emt 0:01:33]} 31. c5 {[%emt 0:00:06]} Kg7 {[%emt 0:00:09]} 32. c6 {[%emt 0:00:24]} f6 {[%emt 0:00:18]} 33. c7 {[%emt 0:00:08]} 1-0

[Event "Budapest Spring Festival 2019"]
[Site "Budapest"]
[Date "2019.04.16"]
[Round "8.19"]
[White "Kulkarni Bhakti"]
[Black "Vetoshko, Volodymyr"]
[Result "1/2-1/2"]
[ECO "E32"]
[WhiteElo "2350"]
[BlackElo "2510"]
[Annotator "ChessBase"]
[PlyCount "32"]
[EventDate "2019.04.09"]
[EventType "swiss"]
[EventCountry "HUN"]
[SourceTitle "playchess.com"]
[Source "ChessBase"]
[SourceQuality "1"]
[TimeControl "40/5400+30:1800+30"]

1. d4 {[%emt 0:02:50]} Nf6 {[%emt 0:00:30]} 2. c4 {[%emt 0:00:29]} e6 {[%emt 0:00:08]} 3. Nc3 {[%emt 0:00:33]} Bb4 {[%emt 0:00:08]} 4. Qc2 {[%emt 0:00:32]} b6 {[%emt 0:00:21]} 5. a3 {[%emt 0:02:37]} Bxc3+ {[%emt 0:00:08]} 6. Qxc3 {[%emt 0:00:05]} Bb7 {[%emt 0:01:49]} 7. Bg5 {[%emt 0:00:55]} O-O {[%emt 0:00:59]} 8. e3 {[%emt 0:00:22]} d6 {[%emt 0:01:55]} 9. Ne2 {[%emt 0:00:34]} Nbd7 {[%emt 0:01:35]} 10. Qc2 {[%emt 0:00:16]} h6 {[%emt 0:04:21]} 11. Bh4 {[%emt 0:00:30]} c5 {[%emt 0:02:13]} 12. Rd1 {[%emt 0:00:18]} Qe7 {[%emt 0:02:59]} 13. Nc3 {[%emt 0:01:14]} cxd4 {[%emt 0:21:23]} 14. Rxd4 {[%emt 0:01:11]} Rfd8 {[%emt 0:00:26]} 15. f3 {[%emt 0:02:32]} d5 {[%emt 0:25:37]} 16. cxd5 {[%emt 0:01:17]} exd5 {[%emt 0:02:25]} 1/2-1/2

[Event "Budapest Spring Festival 2019"]
[Site "Budapest"]
[Date "2019.04.16"]
[Round "8.22"]
[White "Risting, Eivind Olav"]
[Black "Swayams, Mishra"]
[Result "1/2-1/2"]
[ECO "E12"]
[WhiteElo "2345"]
[BlackElo "2478"]
[Annotator "ChessBase"]
[PlyCount "32"]
[EventDate "2019.04.09"]
[EventType "swiss"]
[EventCountry "HUN"]
[SourceTitle "playchess.com"]
[Source "ChessBase"]
[SourceQuality "1"]
[TimeControl "40/5400+30:1800+30"]

1. d4 {[%emt 0:00:03]} Nf6 {[%emt 0:08:53]} 2. c4 {[%emt 0:00:09]} e6 {[%emt 0:00:11]} 3. Nf3 {[%emt 0:00:12]} b6 {[%emt 0:00:05]} 4. a3 {[%emt 0:00:17]} Bb7 {[%emt 0:00:02]} 5. Nc3 {[%emt 0:00:09]} d5 {[%emt 0:00:04]} 6. cxd5 {[%emt 0:00:15]} Nxd5 {[%emt 0:00:03]} 7. Qc2 {[%emt 0:00:09]} Nxc3 {[%emt 0:03:34]} 8. bxc3 {[%emt 0:00:32]} Nd7 {[%emt 0:02:28]} 9. e4 {[%emt 0:02:01]} c5 {[%emt 0:00:02]} 10. Bf4 {[%emt 0:09:23]} Rc8 {[%emt 0:05:03]} 11. d5 {[%emt 0:08:44]} exd5 {[%emt 0:11:59]} 12. exd5 {[%emt 0:00:11]} c4 {[%emt 0:00:08]} 13. d6 {[%emt 0:09:07]} Qf6 {[%emt 0:01:59]} 14. Qe2+ {[%emt 0:01:07]} Qe6 {[%emt 0:00:08]} 15. O-O-O {[%emt 0:17:29]} h6 {[%emt 0:17:58]} 16. h4 {[%emt 0:07:23]} Kd8 {[%emt 0:06:21]} 1/2-1/2

[Event "Budapest Spring Festival 2019"]
[Site "Budapest"]
[Date "2019.04.16"]
[Round "8.25"]
[White "Bayramov, Zaur"]
[Black "Nguyen, Piotr"]
[Result "1-0"]
[ECO "A82"]
[WhiteElo "2301"]
[BlackElo "2427"]
[Annotator "NA RC"]
[PlyCount "57"]
[EventDate "2019.04.09"]
[EventType "swiss"]
[EventCountry "HUN"]
[SourceTitle "playchess.com"]
[Source "ChessBase"]
[SourceQuality "1"]
[TimeControl "40/5400+30:1800+30"]

1. d4 {[%emt 0:00:03]} f5 {[%emt 0:00:05]} 2. e4 {[%emt 0:04:59]} fxe4 {[%emt 0:00:05]} 3. f3 {[%emt 0:00:38]} d5 {[%emt 0:01:42]} 4. Nc3 {[%emt 0:06:39]} Nf6 {[%emt 0:00:06]} 5. Bf4 {[%emt 0:02:12]} Bf5 {[%emt 0:26:40]} 6. fxe4 {[%emt 0:13:48]} dxe4 {[%emt 0:04:00]} 7. Bc4 {[%emt 0:09:43]} e6 {[%emt 0:01:26]} 8. Nge2 {[%emt 0:02:05]} Nc6 {[%emt 0:20:43]} 9. O-O {[%emt 0:23:16]} Na5 {[%emt 0:01:06]} 10. Bb3 {[%emt 0:02:50]} Nxb3 {[%emt 0:01:23]} 11. axb3 {[%emt 0:00:07]} Bd6 {[%emt 0:08:29]} 12. Qd2 {[%emt 0:08:01]} O-O {[%emt 0:01:22]} 13. h3 {[%emt 0:05:34]} Nd5 {[%emt 0:08:15]} 14. Bxd6 {[%emt 0:04:44]} Qxd6 {[%emt 0:00:11]} 15. Nb5 {[%emt 0:03:28]} Qb6 {[%emt 0:01:39]} 16. c4 {[%emt 0:00:05]} a6 {[%emt 0:06:27]} 17. Na3 {[%emt 0:01:12]} Qb4 {[%emt 0:02:09]} 18. Qc1 {[%emt 0:01:03]} Nf6 {[%emt 0:04:39]} 19. Qe3 {[%emt 0:00:19]} Qe7 {[%emt 0:01:27]} 20. Nb1 {[%emt 0:01:29]} Rad8 {[%emt 0:01:31]} 21. Nbc3 {[%emt 0:01:33]} Qb4 {[%emt 0:01:14]} 22. Na4 {[%emt 0:02:26]} b6 {[%emt 0:00:54]} 23. d5 {[%emt 0:01:09]} Bg6 {[%emt 0:05:09]} 24. dxe6 {[%emt 0:01:43]} Rd3 {[%emt 0:00:09]} 25. Qg5 {[%emt 0:00:21]} e3 {[%emt 0:00:57]} 26. Nf4 {[%emt 0:01:02]} Ne4 {[%emt 0:00:26]} 27. Nxd3 {[%emt 0:00:20]} Rxf1+ {[%emt 0:00:43]} 28. Rxf1 {[%emt 0:00:05]} Qd6 {[%emt 0:00:07]} 29. Qxe3 {[%emt 0:00:09]} 1-0

[Event "Budapest Spring Festival 2019"]
[Site "Budapest"]
[Date "2019.04.16"]
[Round "8.26"]
[White "Balogh, David"]
[Black "Srinath, Rao S.V."]
[Result "0-1"]
[ECO "A48"]
[WhiteElo "2264"]
[BlackElo "2416"]
[Annotator "NA RC"]
[PlyCount "70"]
[EventDate "2019.04.09"]
[EventType "swiss"]
[EventCountry "HUN"]
[SourceTitle "playchess.com"]
[Source "ChessBase"]
[SourceQuality "1"]
[TimeControl "40/5400+30:1800+30"]

1. d4 {[%emt 0:00:03]} Nf6 {[%emt 0:01:59]} 2. Nf3 {[%emt 0:00:08]} g6 {[%emt 0:00:05]} 3. Bg5 {[%emt 0:00:05]} Bg7 {[%emt 0:00:12]} 4. Nbd2 {[%emt 0:00:06]} O-O {[%emt 0:00:22]} 5. c3 {[%emt 0:00:05]} d6 {[%emt 0:01:25]} 6. e4 {[%emt 0:00:07]} c6 {[%emt 0:01:10]} 7. h3 {[%emt 0:05:35]} Nbd7 {[%emt 0:00:58]} 8. a4 {[%emt 0:31:53]} a5 {[%emt 0:00:45]} 9. Qb3 {[%emt 0:08:44]} Qc7 {[%emt 0:00:44]} 10. Be3 {[%emt 0:00:59]} b6 {[%emt 0:02:52]} 11. Be2 {[%emt 0:10:13]} Bb7 {[%emt 0:08:01]} 12. O-O {[%emt 0:01:12]} e6 {[%emt 0:00:51]} 13. Ne1 {[%emt 0:02:43]} c5 {[%emt 0:00:31]} 14. f3 {[%emt 0:00:57]} Nh5 {[%emt 0:05:22]} 15. Bb5 {[%emt 0:02:23]} e5 {[%emt 0:02:35]} 16. dxe5 {[%emt 0:02:11]} Nxe5 {[%emt 0:01:05]} 17. Rd1 {[%emt 0:04:37]} Kh8 {[%emt 0:03:16]} 18. Nd3 {[%emt 0:04:36]} f5 {[%emt 0:02:10]} 19. exf5 {[%emt 0:04:58]} gxf5 {[%emt 0:02:33]} 20. Nf4 {[%emt 0:06:43]} Nxf4 {[%emt 0:00:07]} 21. Bxf4 {[%emt 0:00:06]} Ng6 {[%emt 0:00:03]} 22. Bg3 {[%emt 0:01:27]} f4 {[%emt 0:01:18]} 23. Bf2 {[%emt 0:00:05]} d5 {[%emt 0:00:07]} 24. Rc1 {[%emt 0:05:07]} Ne7 {[%emt 0:02:01]} 25. Rfe1 {[%emt 0:02:01]} Nf5 {[%emt 0:05:12]} 26. Nf1 {[%emt 0:00:06]} Qd6 {[%emt 0:02:19]} 27. Re2 {[%emt 0:02:12]} d4 {[%emt 0:01:36]} 28. Re6 {[%emt 0:00:49]} Qd8 {[%emt 0:00:15]} 29. Bc6 {[%emt 0:00:57]} Bxc6 {[%emt 0:00:36]} 30. Rxc6 {[%emt 0:00:05]} Rb8 {[%emt 0:00:11]} 31. Rd1 {[%emt 0:02:03]} Qg5 {[%emt 0:06:14]} 32. Rxb6 {[%emt 0:01:08]} Rxb6 {[%emt 0:00:06]} 33. Qxb6 {[%emt 0:00:06]} Ne3 {[%emt 0:02:04]} 34. Bxe3 {[%emt 0:01:36]} fxe3 {[%emt 0:00:04]} 35. Nh2 {[%emt 0:00:51]} e2 {[%emt 0:00:20]} 0-1

[Event "Budapest Spring Festival 2019"]
[Site "Budapest"]
[Date "2019.04.16"]
[Round "8.27"]
[White "Horvath, Dominik"]
[Black "Nandhidhaa, P V"]
[Result "1/2-1/2"]
[ECO "A34"]
[WhiteElo "2412"]
[BlackElo "2314"]
[Annotator "NA"]
[PlyCount "77"]
[EventDate "2019.04.09"]
[EventType "swiss"]
[EventCountry "HUN"]
[SourceTitle "playchess.com"]
[Source "ChessBase"]
[SourceQuality "1"]
[TimeControl "40/5400+30:1800+30"]

1. c4 {[%emt 0:00:03]} Nf6 {[%emt 0:00:26]} 2. Nc3 {[%emt 0:00:56]} c5 {[%emt 0:00:12]} 3. Nf3 {[%emt 0:00:06]} d5 {[%emt 0:00:46]} 4. cxd5 {[%emt 0:00:07]} Nxd5 {[%emt 0:00:05]} 5. e3 {[%emt 0:00:31]} Nxc3 {[%emt 0:01:38]} 6. dxc3 {[%emt 0:00:16]} Qxd1+ {[%emt 0:01:00]} 7. Kxd1 {[%emt 0:00:08]} g6 {[%emt 0:04:26]} 8. e4 {[%emt 0:02:25]} Bg7 {[%emt 0:00:55]} 9. Be3 {[%emt 0:00:55]} Nd7 {[%emt 0:03:57]} 10. Nd2 {[%emt 0:18:02]} O-O {[%emt 0:05:13]} 11. a4 {[%emt 0:00:44]} b6 {[%emt 0:01:41]} 12. a5 {[%emt 0:01:42]} Bb7 {[%emt 0:02:33]} 13. Bb5 {[%emt 0:04:13]} Ne5 {[%emt 0:09:49]} 14. f3 {[%emt 0:02:49]} Rfc8 {[%emt 0:03:50]} 15. axb6 {[%emt 0:04:41]} axb6 {[%emt 0:00:19]} 16. Kc2 {[%emt 0:00:05]} Kf8 {[%emt 0:02:10]} 17. Rhe1 {[%emt 0:09:07]} e6 {[%emt 0:14:45]} 18. Bg5 {[%emt 0:01:54]} h6 {[%emt 0:01:45]} 19. Be3 {[%emt 0:03:15]} Ke7 {[%emt 0:01:37]} 20. Bg1 {[%emt 0:03:45]} g5 {[%emt 0:01:41]} 21. Red1 {[%emt 0:07:07]} Rxa1 {[%emt 0:06:42]} 22. Rxa1 {[%emt 0:00:04]} Ra8 {[%emt 0:00:07]} 23. Rxa8 {[%emt 0:00:40]} Bxa8 {[%emt 0:00:09]} 24. b4 {[%emt 0:07:40]} cxb4 {[%emt 0:01:03]} 25. c4 {[%emt 0:03:20]} Nd7 {[%emt 0:01:03]} 26. Bxd7 {[%emt 0:00:50]} Kxd7 {[%emt 0:00:07]} 27. Bxb6 {[%emt 0:00:02]} f5 {[%emt 0:02:03]} 28. Bc5 {[%emt 0:09:01]} Bc3 {[%emt 0:02:00]} 29. exf5 {[%emt 0:00:06]} exf5 {[%emt 0:00:14]} 30. Nb1 {[%emt 0:07:15]} Be5 {[%emt 0:01:53]} 31. h3 {[%emt 0:02:03]} g4 {[%emt 0:01:05]} 32. Nd2 {[%emt 0:01:31]} Bc3 {[%emt 0:03:10]} 33. hxg4 {[%emt 0:01:56]} fxg4 {[%emt 0:01:58]} 34. fxg4 {[%emt 0:00:02]} Bxg2 {[%emt 0:01:21]} 35. Bf8 {[%emt 0:00:05]} Bh3 {[%emt 0:01:14]} 36. Ne4 {[%emt 0:00:30]} Bxg4 {[%emt 0:00:55]} 37. Nxc3 {[%emt 0:00:05]} bxc3 {[%emt 0:00:07]} 38. Bxh6 {[%emt 0:00:04]} Kc6 {[%emt 0:00:15]} 39. Kxc3 {[%emt 0:00:04]} 1/2-1/2

[Event "Budapest Spring Festival 2019"]
[Site "Budapest"]
[Date "2019.04.16"]
[Round "8.28"]
[White "Nomin-Erdene, Davaademberel"]
[Black "Vegh, Endre"]
[Result "1-0"]
[ECO "B90"]
[WhiteElo "2399"]
[BlackElo "2240"]
[Annotator "NA RC"]
[PlyCount "105"]
[EventDate "2019.04.09"]
[EventType "swiss"]
[EventCountry "HUN"]
[SourceTitle "playchess.com"]
[Source "ChessBase"]
[SourceQuality "1"]
[TimeControl "40/5400+30:1800+30"]

1. e4 {[%emt 0:00:03]} c5 {[%emt 0:00:28]} 2. Nf3 {[%emt 0:00:06]} d6 {[%emt 0:00:24]} 3. d4 {[%emt 0:00:06]} cxd4 {[%emt 0:00:07]} 4. Nxd4 {[%emt 0:00:05]} Nf6 {[%emt 0:00:06]} 5. Nc3 {[%emt 0:00:10]} a6 {[%emt 0:00:16]} 6. Be3 {[%emt 0:00:15]} e6 {[%emt 0:00:34]} 7. f3 {[%emt 0:00:16]} b5 {[%emt 0:00:42]} 8. g4 {[%emt 0:00:07]} Nfd7 {[%emt 0:01:16]} 9. Qd2 {[%emt 0:00:15] B80: Sicilian Scheveningen: 6 g3 and 6 Be3, including English Attack} Nb6 {[%emt 0:04:12]} 10. a4 {[%emt 0:09:35]} Nc4 {[%emt 0:03:18]} 11. Bxc4 {[%emt 0:00:08]} bxc4 {[%emt 0:00:04]} 12. a5 {[%emt 0:00:06]} Be7 {[%emt 0:04:33]} 13. O-O {[%emt 0:23:46]} Qc7 {[%emt 0:09:34]} 14. Qe2 {[%emt 0:15:20]} Bd7 {[%emt 0:06:32]} 15. Na4 {[%emt 0:02:02]} Bb5 $146 {[%emt 0:16:32]} ({Predecessor:} 15... Ra7 16. Nb6 c3 {½-½ (39) Lupulescu,C (2560)-Szabo,G (2433) Bucharest 2004}) 16. Nb6 {[%emt 0:03:02]} Ra7 {[%emt 0:02:29]} 17. b3 {[%emt 0:02:21]} O-O {[%emt 0:08:25]} 18. Nxb5 {[%emt 0:08:18]} axb5 {[%emt 0:00:07]} 19. bxc4 {[%emt 0:00:06]} b4 {[%emt 0:05:47]} 20. Na4 {[%emt 0:08:38]} Ra8 {[%emt 0:04:21]} 21. Bb6 {[%emt 0:03:03]} Qc6 {[%emt 0:00:43]} 22. c3 {[%emt 0:02:15]} bxc3 {[%emt 0:01:59]} 23. Nxc3 {[%emt 0:06:40]} Bf6 {[%emt 0:00:49]} 24. Rfc1 {[%emt 0:07:17]} Nd7 {[%emt 0:01:48]} 25. Be3 {[%emt 0:00:25]} Rfc8 {[%emt 0:02:26]} 26. g5 {[%emt 0:03:01]} Be5 {[%emt 0:03:22]} 27. Ra2 {[%emt 0:01:51]} Qxc4 {[%emt 0:01:02]} 28. Qxc4 {[%emt 0:00:38]} Rxc4 {[%emt 0:00:04]} 29. Ne2 {[%emt 0:00:07]} Rxc1+ {[%emt 0:01:58]} 30. Bxc1 {[%emt 0:00:04]} d5 {[%emt 0:03:20]} 31. exd5 {[%emt 0:00:39]} exd5 {[%emt 0:00:10]} 32. Be3 {[%emt 0:01:50]} Ra6 {[%emt 0:04:57]} 33. Kg2 {[%emt 0:03:10]} Kf8 {[%emt 0:00:20]} 34. f4 {[%emt 0:00:24]} Bc7 {[%emt 0:01:10]} 35. Bd2 {[%emt 0:00:26]} Ke8 {[%emt 0:01:52]} 36. Nd4 {[%emt 0:00:48]} Nc5 {[%emt 0:01:36]} 37. Kf3 {[%emt 0:00:30]} Kd7 {[%emt 0:01:00]} 38. h4 {[%emt 0:00:29]} Ne4 {[%emt 0:03:29]} 39. Be1 {[%emt 0:00:24]} Nd6 {[%emt 0:00:28]} 40. Nb3 {[%emt 0:00:00]} Kc6 {[%emt 0:00:00]} 41. Re2 {[%emt 0:14:30]} Bd8 {[%emt 0:04:58]} 42. h5 {[%emt 0:05:32]} g6 {[%emt 0:03:25]} 43. h6 {[%emt 0:00:27]} Ra8 {[%emt 0:05:26]} 44. Re5 {[%emt 0:06:19]} Rb8 $2 {[%emt 0:06:00]} (44... Nf5 $11 {and Black stays safe.} 45. Re8 Rb8) 45. Nd4+ {[%emt 0:00:19]} Kc5 {[%emt 0:02:10]} 46. Bf2 {[%emt 0:00:24]} Kc4 {[%emt 0:05:37]} 47. Nc6 {[%emt 0:02:10]} Ra8 {[%emt 0:03:31] [#]} 48. a6 $1 {[%emt 0:00:34]} Ne4 {[%emt 0:01:29]} 49. Re8 {[%emt 0:01:22]} Rxa6 {[%emt 0:03:39]} 50. Ne5+ {[%emt 0:00:05]} ({Less strong is} 50. Nxd8 Ra3+ 51. Be3 Nd6 $14) 50... Kb5 {[%emt 0:03:10]} 51. Rxd8 {[%emt 0:00:05]} Ra3+ {[%emt 0:00:39]} 52. Be3 $18 {[%emt 0:00:17]} Nc3 {[%emt 0:00:52]} 53. Nxf7 {[%emt 0:00:49]} 1-0